Cogmind - Beta 14 @@@ ROGUE MODE // 2024.08.18 @ 15:54:03 Player: THN-L0C Result: Destroyed by CF-XHN(x) with Makeshift Spear Performance ------------- Evolutions (2) 1000 Regions Visited (8) 1600 Robots Destroyed (85) 425 Value Destroyed (2521) 2521 Prototype IDs (30) 600 Alien Tech Used (0) 0 Bonus (924) 924 TOTAL SCORE: 7070 Bonus ------- High Alert Combat Kills 44 Follower Combat Kills 655 Aligned with FarCom 300 Friendly Fire -75 Cogmind --------- Core Integrity 0/550 Matter 300/300 Energy 280/290 System Corruption 1% Temperature Cool (0) Movement Treading (130) Location -8/Scraptown Parts ------- > --- POWER (1) -------- Improved Deuterium Engine > --- PROPULSION (4) --- Overtuned Treads Tri-treads > --- UTILITY (4) ------ Scrap Suit Hardened Heavy Armor Plating > --- WEAPON (2) ------- Power Sword Longsword +1 > --- INVENTORY (5) ---- Angular Momentum Engine Improved Light Armor Plating Drone Bay (2/2) High-powered Shotgun Improved Datajack Peak State ------------ > --- POWER ------------ Improved Deuterium Engine > --- PROPULSION ------- Overtuned Treads Tri-treads > --- UTILITY ---------- Large Storage Unit Hardened Heavy Armor Plating Drone Bay > --- WEAPON ----------- Power Sword Longsword +1 > --- INVENTORY -------- Deuterium Engine Angular Momentum Engine Advanced Melee Analysis Suite Actuator Array Reaction Control System Improved Propulsion Shielding Improved Weapon Shielding Improved Light Armor Plating Drone Bay High-powered Shotgun Improved Datajack Plasma Cutter CPS Tube Katana [Rating: 56] Favorites ----------- Power Light Ion Engine Engine Light Ion Engine Power Core Light Nuclear Core Propulsion Aluminum Leg Treads Improved Treads Leg Aluminum Leg Wheel Compact Wheel Flight Unit Improved Flight Unit Utility Large Storage Unit Device Structural Scanner Storage Large Storage Unit Processor Machine Analyzer Protection Improved Light Armor Plating Weapon Grenade Launcher Energy Gun Particle Gun Ballistic Gun Assault Rifle Launcher Grenade Launcher Special Weapon Plasma Cutter Impact Weapon Hammer Slashing Weapon Katana Special Melee Weapon Improved Datajack Build | -11 -10 -10 -10 -9 -8 -8 -8 -8 ------- Run | Yrd Mat Min Exi Min Mat Sto Rec Scr Slots Evolved 4 | . . . . . 4 . . . Power . | . . . . . . . . . Propulsion 2 | . . . . . 2 . . . Utility 2 | . . . . . 2 . . . Weapon . | . . . . . . . . . Parts Attached 134 | 7 6 3 1 22 37 15 24 19 Power 11 | 1 . 1 . 3 3 . 2 1 Engine 9 | 1 . 1 . 2 2 . 2 1 Core 2 | . . . . 1 1 . . . Reactor . | . . . . . . . . . Propulsion 33 | 2 1 . . 6 9 5 7 3 Treads 7 | . . . . . 2 3 . 2 Leg 24 | 2 1 . . 6 7 1 6 1 Wheel 1 | . . . . . . . 1 . Hover . | . . . . . . . . . Flight 1 | . . . . . . 1 . . Utility 22 | 2 . . 1 3 5 4 3 4 Device 10 | 1 . . . 3 2 2 1 1 Storage 2 | 1 . . 1 . . . . . Processor 1 | . . . . . . 1 . . Hackware . | . . . . . . . . . Protection 9 | . . . . . 3 1 2 3 Artifact . | . . . . . . . . . Weapon 68 | 2 5 2 . 10 20 6 12 11 Energy Gun 9 | 1 1 . . 1 4 2 . . Energy Cannon . | . . . . . . . . . Ballistic Gun 22 | 1 1 1 . 4 4 3 5 3 Ballistic Cannon . | . . . . . . . . . Launcher 11 | . . 1 . 3 5 . 1 1 Special Weapon 3 | . . . . . . . 1 2 Impact Weapon 13 | . 3 . . 2 7 1 . . Slashing Weapon 7 | . . . . . . . 2 5 Piercing Weapon . | . . . . . . . . . Special Melee Weapon 3 | . . . . . . . 3 . Unidentified Prototypes 5 | . . . . 1 2 2 . . Parts Lost 13 | . . . . 1 4 3 4 1 Power 1 | . . . . . . 1 . . Propulsion 9 | . . . . 1 4 1 3 . Utility 1 | . . . . . . . 1 . Weapon 2 | . . . . . . 1 . 1 Highest Loss Streak 2 | . . . . 1 2 2 2 1 To Critical Strikes . | . . . . . . . . . Average Slot Usage (%) 98 | . 99 100 100 99 98 96 98 85 Engine 7 | . 14 14 14 5 1 8 9 9 Core 3 | . . . . 8 7 . . . Treads 2 | . . . . . 3 24 3 2 Leg 27 | . 27 28 28 27 31 9 27 28 Device 15 | . 14 14 14 14 18 16 18 12 Storage 11 | . 14 14 14 14 9 9 9 8 Protection 4 | . . . . . 8 9 9 9 Energy Gun 4 | . 7 1 . 8 4 1 . . Ballistic Gun 8 | . 11 13 14 8 6 9 10 . Launcher 4 | . . 13 14 8 2 . 1 . Impact Weapon 2 | . 8 1 . 2 4 6 . . Special Melee Weapon 1 | . . . . . . . 4 7 Peak Build Rating 56 | 7 8 8 8 20 30 33 36 56 Average Rating 20 | 5 7 7 8 12 25 29 33 40 On Entrance 14 | . 7 8 8 8 13 25 23 35 Naked Turns . | . . . . . . . . . Heaviest Build 64 | 12 13 14 29 32 40 40 45 64 Greatest Support 70 | 20 20 20 20 20 48 69 63 70 Greatest Overweight (x) 3 | 3 . . 1 1 1 . 2 1 Average Overweight (x) . | . . . . 1 . . . . Largest Inventory Capacity 15 | 8 8 8 15 15 15 15 15 15 Average Capacity 13 | 7 8 8 14 15 15 15 15 14 Most Carried 15 | 1 8 8 9 15 15 15 15 15 Average Carried 12 | . 6 7 8 14 14 14 14 14 Final Capacity 15 | 8 8 8 15 15 15 15 15 5 Final Carried 15 | 1 8 8 9 15 15 15 15 5 Class Distribution -------------------- 50% | Mutant 22% | Commander-Mutant 8% | Scavenger-Skirmisher 8% | Scavenger-Assassin 6% | Scavenger-Mutant Dominant Class ---------------- Mutant | -10/Materials Mutant | -10/Mines Mutant | -10/Exiles Mutant | -9/Mines Scavenger-Skirmisher | -8/Materials Mutant | -8/Storage Commander-Mutant | -8/Recycling Commander-Mutant | -8/Scraptown Resources | -11 -10 -10 -10 -9 -8 -8 -8 -8 ----------- Run | Yrd Mat Min Exi Min Mat Sto Rec Scr Matter Collected 2690 | 197 407 . . 428 560 266 441 391 Remotely . | . . . . . . . . . Salvage Created 2678 | 26 252 . . 527 808 264 225 576 Parts 125 | 4 7 . . 23 56 10 7 18 Haulers Intercepted 3 | . . . . . . 3 . . Recyclers Shooed 2 | 1 . . . . 1 . . . Parts Field Recycled . | . . . . . . . . . Retrieved Matter . | . . . . . . . . . Parts Self-Destructed . | . . . . . . . . . Prevented . | . . . . . . . . . Kills | -11 -10 -10 -10 -9 -8 -8 -8 -8 ------- Run | Yrd Mat Min Exi Min Mat Sto Rec Scr Combat Hostiles Destroyed 63 | . 5 . . 18 21 1 7 11 Melee 4 | . . . . 1 . . . 3 Guns 31 | . 5 . . 11 8 1 6 . AOE 27 | . . . . 6 13 . . 8 Classes Destroyed 20 | 1 2 . . 3 7 1 2 4 Worker 9 | . . . . . 8 1 . . Builder 5 | . . . . . 4 . . 1 Tunneler 1 | 1 . . . . . . . . Hauler 3 | . . . . . . 3 . . Recycler 2 | . . . . . 1 1 . . Operator 1 | . 1 . . . . . . . Watcher 2 | . . . . . 2 . . . Swarmer 9 | . . . . 5 3 . 1 . Grunt 32 | . 5 . . 11 13 1 2 . Brawler 1 | . . . . 1 . . . . Duelist 1 | . . . . . 1 . . . Protector 2 | . . . . . . . 2 . Sentry 3 | . . . . . 3 . . . Hunter 2 | . . . . . 1 . 1 . Programmer 1 | . . . . . . . 1 . Bolteater 1 | . . . . . . . . 1 Federalist 1 | . . . . . . . . 1 Scrapper 6 | . . . . . . . . 6 Elite 1 | . . . . . . . . 1 Assembled 1 | . . . . 1 . . . . Thug 2 | . . . . . . . . 2 Best Kill Streak 10 | 1 2 . . 4 10 3 4 6 Combat Bots Only 6 | . 2 . . 4 5 1 4 6 Max Kills in Single Turn 4 | 1 1 . . 2 4 1 2 3 Gunslinging . | . . . . . . . . . Exploded 3 | . . . . 2 3 . . 2 Melee 1 | . . . . 1 . . . 1 Uniques/NPCs Destroyed 1 | . . . . . . . . 1 Triborg (-8/Scraptown) Combat | -11 -10 -10 -10 -9 -8 -8 -8 -8 -------- Run | Yrd Mat Min Exi Min Mat Sto Rec Scr Hostile Shots Fired 410 | . 42 . . 40 122 96 45 65 Missed 119 | . 12 . . 8 44 24 10 21 Damage Taken 4198 | . 401 . . 374 1388 945 359 731 Core 736 | . 98 . . 68 170 267 51 82 Absorbed by Shields 346 | . . . . . . 124 66 156 Regen/Repaired (Parts) 217 | . 87 . . . 130 . . . Core Remaining (%) 66 | 100 . . . 33 . . . . Volleys Fired 168 | 3 25 . . 46 46 7 24 17 Largest 2 | 2 2 . . 2 2 2 2 1 Hottest 95 | 60 60 . . 95 89 75 50 36 Shots Fired 260 | 6 45 . . 69 70 14 39 17 Gun 210 | 6 45 . . 61 46 14 35 3 Cannon . | . . . . . . . . . Launcher 45 | . . . . 8 24 . . 13 Special 5 | . . . . . . . 4 1 Kinetic 136 | 3 25 . . 38 21 11 35 3 Thermal 60 | 3 20 . . 23 10 . 4 . Explosive 45 | . . . . 8 24 . . 13 Electromagnetic 18 | . . . . . 15 3 . . Robot Hit Streak 20 | 1 20 . . 5 10 4 6 4 Robot Miss Streak 5 | 2 3 . . 5 4 4 5 2 Penetration Max . | . . . . . . . . . Secondary Targets 1 | . 1 . . . . . . . Max Gunslinging Chain 1 | . 1 . . . . . . . Shots Hit Robots 251 | 2 32 . . 38 47 14 94 24 Core Hits 145 | 1 13 . . 25 68 5 11 22 Critical Kills . | . . . . . . . . . Critical Parts Destroyed 3 | . . . . 1 . 1 1 . Critical Strikes 8 | . . . . 2 1 1 1 3 Burn 2 | . . . . 1 1 . . . Destroy 1 | . . . . 1 . . . . Smash 2 | . . . . . . 1 1 . Sever 3 | . . . . . . . . 3 Melee Attacks 257 | . 21 . . 91 42 8 78 17 Impact 163 | . 21 . . 91 42 8 1 . Slashing 26 | . . . . . . . 10 16 Piercing . | . . . . . . . . . Sneak Attacks 72 | . . . . . 2 2 67 1 Combat Hostiles 42 | . . . . . . . 42 . Follow-up Attacks 4 | . . . . . . . . 4 Damage Inflicted 6303 | 20 376 . . 944 2517 394 623 1429 Guns 2310 | 20 376 . . 477 772 204 461 . Cannons . | . . . . . . . . . Explosions 3071 | . . . . 412 1623 . . 1036 Melee 872 | . . . . 25 114 178 162 393 Ramming 50 | . . . . 30 8 12 . . Kinetic 1643 | . 237 . . 340 441 164 461 . Thermal 402 | 20 139 . . 137 106 . . . Explosive 3071 | . . . . 412 1623 . . 1036 Electromagnetic 265 | . . . . . 225 40 . . Impact 402 | . . . . 25 114 178 85 . Slashing 470 | . . . . . . . 77 393 Piercing . | . . . . . . . . . Highest Corruption 1 | . . . . . . . 1 1 Average Corruption 1 | . . . . . . . 1 1 Corruption Purged . | . . . . . . . . . Corruption Blocked . | . . . . . . . . . Effects 16 | . . . . . . . 10 6 Message Errors 4 | . . . . . . . 3 1 Matter Fused 3 | . . . . . . . 1 2 Heat Flow Errors 2 | . . . . . . . 1 1 Energy Discharges 2 | . . . . . . . 1 1 Data Loss (minor) 3 | . . . . . . . 3 . Misfires 1 | . . . . . . . . 1 Alerts 1 | . . . . . . . 1 . Overload Shots . | . . . . . . . . . Overflow Damage 246 | . . . . . 68 95 69 14 Projectiles . | . . . . . . . . . Explosions 40 | . . . . . 34 . . 6 Melee 206 | . . . . . 34 95 69 8 Knockbacks 2 | . . . . . 2 . . . Impact 2 | . . . . . 2 . . . Kinetic . | . . . . . . . . . Secondary . | . . . . . . . . . Self-Inflicted Damage 53 | . . . . 15 38 . . . Shots 2 | . . . . 1 1 . . . Rammed 1 | . . . . . . 1 . . Targets Rammed 12 | . . . . 8 2 2 . . Kicked 10 | . . . . 8 2 . . . Crushed 1 | . . . . . . 1 . . Highest Temperature 345 | . 93 . . 294 345 24 191 255 Average Temperature 69 | . 44 . . 78 89 12 53 59 Received Heat Transfer 1712 | . 228 . . 159 495 414 66 350 Effects 2 | . . . . . 1 . . 1 Energy Bleed 2 | . . . . . 1 . . 1 Siege Activations . | . . . . . . . . . Robots Corrupted 3 | . . . . . 1 1 1 . Combat Hostiles 1 | . . . . . . . 1 . Parts Fried 12 | . . . . . 5 3 4 . Impact Corruptions 8 | . . . . . 2 3 3 . Robots Melted . | . . . . . . . . . Combat Hostiles . | . . . . . . . . . Parts Melted 4 | . . . . 1 . . . 3 Heat Transferred 1115 | 50 325 . . 407 333 . . . Parts Sabotaged . | . . . . . . . . . Parts Stolen . | . . . . . . . . . Parts Stripped . | . . . . . . . . . Power Chain Reactions . | . . . . . . . . . Alert | -11 -10 -10 -10 -9 -8 -8 -8 -8 ------- Run | Yrd Mat Min Exi Min Mat Sto Rec Scr Peak Influence 492 | 5 128 27 . 213 492 246 117 . Initial 207 | . 3 27 . . 74 207 66 . Average 63 | 2 17 27 . 38 133 132 47 . Maximum Alert Level 2 | . . . . 1 2 1 . . Low Security (%) 90 | 100 100 100 . 96 69 74 100 . Level 1 9 | . . . . 3 29 25 . . Level 2 . | . . . . . . . . . Level 3 . | . . . . . . . . . Level 4 . | . . . . . . . . . Level 5 . | . . . . . . . . . High Security . | . . . . . . . . . Max Security . | . . . . . . . . . Squads Dispatched 12 | . 1 . . 1 4 6 . . Investigation 8 | . 1 . . 1 2 4 . . Extermination . | . . . . . . . . . Reinforcement 2 | . . . . . 2 . . . Assault 2 | . . . . . . 2 . . Garrison . | . . . . . . . . . Intercept . | . . . . . . . . . Searches Triggered . | . . . . . . . . . Construction Impeded 1 | . . . . . 1 . . . Haulers Reinforced . | . . . . . . . . . Active Scanning Responses . | . . . . . . . . . Cargo Convoy Interrupts . | . . . . . . . . . Stealth | -11 -10 -10 -10 -9 -8 -8 -8 -8 --------- Run | Yrd Mat Min Exi Min Mat Sto Rec Scr Distress Signals 5 | . . . . . 4 . 1 . Communications Jammed . | . . . . . . . . . Distress Signals . | . . . . . . . . . Times Spotted 118 | . 13 . . 24 34 15 12 20 Peak Tracking Total 11 | . 4 . . 4 6 11 3 6 Tactical Retreats 18 | . 1 . . 7 5 5 . . Traps | -11 -10 -10 -10 -9 -8 -8 -8 -8 ------- Run | Yrd Mat Min Exi Min Mat Sto Rec Scr Traps Triggered 5 | . 1 . . . 1 3 . . Indirectly . | . . . . . . . . . Trap Hack Attempts . | . . . . . . . . . Triggered . | . . . . . . . . . Disarmed . | . . . . . . . . . Reprogrammed . | . . . . . . . . . Reused 4 | . . . . 4 . . . . Traps Extracted . | . . . . . . . . . Installed 5 | . . 1 . 4 . . . . Triggered 5 | . . . . 5 . . . . Most Traps Carried 4 | . . 4 4 4 . . . . Objects Rigged 2 | . . . . . . 2 . . Machines | -11 -10 -10 -10 -9 -8 -8 -8 -8 ---------- Run | Yrd Mat Min Exi Min Mat Sto Rec Scr Machines Disabled 5 | . 1 . . . 1 1 . 2 Max in Single Turn 1 | . 1 . . . 1 1 . 1 Machines Repaired . | . . . . . . . . . Machines Dismantled . | . . . . . . . . . Machines Sabotaged . | . . . . . . . . . Overloaded Fab Kills . | . . . . . . . . . Hacking | -11 -10 -10 -10 -9 -8 -8 -8 -8 --------- Run | Yrd Mat Min Exi Min Mat Sto Rec Scr Machines Accessed 34 | . 6 . 2 1 7 6 12 . Terminals 22 | . 5 . . 1 5 5 6 . Fabricators . | . . . . . . . . . Repair Stations 2 | . 1 . . . 1 . . . Recycling Units 6 | . . . . . . . 6 . Scanalyzers 1 | . . . . . 1 . . . Garrison Access 1 | . . . . . . 1 . . Total Hacks 120 | . 32 . 2 5 17 20 44 . Successful 75 | . 17 . 2 3 12 10 31 . Failed 45 | . 15 . . 2 5 10 13 . Catastrophic 6 | . 3 . . . 2 . 1 . Database Lockouts . | . . . . . . . . . Manual 80 | . 23 . 1 2 11 15 28 . Terminals 90 | . 30 . . 5 13 16 26 . Fabricators . | . . . . . . . . . Repair Stations 4 | . 2 . . . 2 . . . Recycling Units 18 | . . . . . . . 18 . Scanalyzers 2 | . . . . . 2 . . . Garrison Access 4 | . . . . . . 4 . . Terminal Hacks 34 | . 8 . 2 3 3 7 11 . Record 1 | . . . 1 . . . . . Part Schematic 2 | . . . . . . 1 1 . Robot Analysis 7 | . 3 . . 2 . . 2 . Open Door 1 | . . . . . . 1 . . Branch Access Points 1 | . . . . . 1 . . . Recycling Unit Index 1 | . . . . . . 1 . . Alert Level 6 | . 1 . . . 1 1 3 . Unreport Threat 2 | . 1 . . . . 1 . . Locate Traps 1 | . 1 . . . . . . . Reinforcement Status 1 | . 1 . . . . . . . Recall Reinforcements 1 | . . . . . 1 . . . Hauler Manifests 1 | . . . . . . 1 . . Zone Layout 8 | . 1 . . 1 . 1 5 . Derelict Proto ID Bank 1 | . . . 1 . . . . . Fabricator Hacks . | . . . . . . . . . Repair Station Hacks 4 | . 2 . . . 2 . . . Scan Component 2 | . 1 . . . 1 . . . Repair 2 | . 1 . . . 1 . . . Recycling Unit Hacks 9 | . . . . . . . 9 . Report Inventory 7 | . . . . . . . 7 . Retrieve Components 2 | . . . . . . . 2 . Scanalyzer 2 | . . . . . 2 . . . Insert Component 1 | . . . . . 1 . . . Analyze 1 | . . . . . 1 . . . Garrison Access Hacks . | . . . . . . . . . Unauthorized Hacks 26 | . 7 . . . 5 3 11 . Terminals 21 | . 7 . . . 5 3 6 . Track 2 | . 2 . . . . . . . Botnet 18 | . 5 . . . 5 2 6 . Detonate 1 | . . . . . . 1 . . Fabricators . | . . . . . . . . . Repair Stations . | . . . . . . . . . Recycling Units 5 | . . . . . . . 5 . Monitor 1 | . . . . . . . 1 . Reject 2 | . . . . . . . 2 . Mask 2 | . . . . . . . 2 . Scanalyzers . | . . . . . . . . . Garrison Access . | . . . . . . . . . Data Cores Recovered 1 | . 1 . . . . . . . Used . | . . . . . . . . . Hacking Detections 27 | . 5 . . 1 6 6 9 . Full Trace Events 12 | . 1 . . 1 1 2 7 . Feedback Events . | . . . . . . . . . Feedback Blocked . | . . . . . . . . . Robot Schematics Acquired . | . . . . . . . . . Robots Built . | . . . . . . . . . Authchips . | . . . . . . . . . Time . | . . . . . . . . . Total Robot Build Rating . | . . . . . . . . . Part Schematics Acquired 4 | . . . . . 1 1 1 1 Parts Built . | . . . . . . . . . Authchips . | . . . . . . . . . Time . | . . . . . . . . . Total Part Build Rating . | . . . . . . . . . Parts Repaired 2 | . 1 . . . 1 . . . Time 45 | . 26 . . . 19 . . . Parts Recycled . | . . . . . . . . . Recycled Matter . | . . . . . . . . . Retrieved Matter . | . . . . . . . . . Retrieved Components 5 | . . . . . . . 5 . Parts Scanalyzed 1 | . . . . . 1 . . . Part Schematics Acquired 1 | . . . . . 1 . . . Parts Damaged . | . . . . . . . . . Bothacking | -11 -10 -10 -10 -9 -8 -8 -8 -8 ------------ Run | Yrd Mat Min Exi Min Mat Sto Rec Scr Used RIF Installer . | . . . . . . . . . Robots Hacked 3 | . . . . . . . 2 1 Non-combat 2 | . . . . . . . 2 . Combat 1 | . . . . . . . . 1 Robot Hacks Applied 3 | . . . . . . . 2 1 parse_system 3 | . . . . . . . 2 1 Relay Couplers Released . | . . . . . . . . . Fabnet Peak Effective % . | . . . . . . . . . Robots Rewired 35 | . . . . . . . 35 . Allies Hacked 1 | . . . . . . . 1 . Hacks Repelled . | . . . . . . . . . Allies | -11 -10 -10 -10 -9 -8 -8 -8 -8 -------- Run | Yrd Mat Min Exi Min Mat Sto Rec Scr Total Allies 40 | . . . . 3 . 2 35 . Largest Group 27 | . . . . 3 . 2 27 27 Highest-Rated Group 385 | . . . . 40 . 62 385 385 Highest-Rated Ally 31 | . . . . 16 . 31 27 27 Total Orders . | . . . . . . . . . Ally Attacks 126 | . . . . 22 . 6 25 73 Total Damage 1947 | . . . . 224 . 105 470 1148 Kills 24 | . . . . 3 . 1 9 11 Allies Corrupted 1 | . . . . . . . 1 . Allies Melted . | . . . . . . . . . Intel | -11 -10 -10 -10 -9 -8 -8 -8 -8 ------- Run | Yrd Mat Min Exi Min Mat Sto Rec Scr Robot Analysis Total 7 | . 3 . . 2 . . 2 . Derelict Logs Recovered 1 | . . . . 1 . . . . Drone Launches . | . . . . . . . . . Drone Recoveries . | . . . . . . . . . Exploration | -11 -10 -10 -10 -9 -8 -8 -8 -8 ------------- Run | Yrd Mat Min Exi Min Mat Sto Rec Scr Turns Passed 12122 | 86 1484 148 1337 3307 2150 583 1965 1062 Spaces Moved 6105 | 53 493 114 734 1179 1298 296 1165 773 Core 14 | 14 . . . . . . . . Treads 634 | . . . . . 208 296 45 85 Legs 5429 | 39 493 114 734 1179 1090 . 1092 688 Wheels 28 | . . . . . . . 28 . Hover . | . . . . . . . . . Flight . | . . . . . . . . . Fastest Speed 50 | 50 120 120 120 190 120 163 112 112 Average Speed 148 | 121 120 120 181 190 131 163 134 121 Slowest Speed 330 | 200 120 120 190 190 240 165 330 230 Overloaded Moves . | . . . . . . . . . Propulsion Burnouts . | . . . . . . . . . Robots Hopped . | . . . . . . . . . Cave-ins Triggered 1 | . . . . . 1 . . . Exploration Rate (%) 62 | 4 85 39 91 101 46 44 98 54 Regions Visited 8 Branch Regions 6 Pre-discovered Areas . | . . . . . . . . . Known Exits Taken 1 | . . . . . 1 . . . Unknown Exits Taken 7 | 1 1 1 1 1 . 1 1 . Scrap Searched 3 | . . . . 1 . . . 2 Spaces Dug 53 | . 15 . . 1 26 2 9 . Terrain Destroyed 279 | . 15 . . 44 184 2 9 25 Melee 53 | . 15 . . 1 26 2 9 . Projectile . | . . . . . . . . . AOE 226 | . . . . 43 158 . . 25 Terrain Rammed . | . . . . . . . . . Walls Destroyed . | . . . . . . . . . Machines Disabled . | . . . . . . . . . Actions | -11 -10 -10 -10 -9 -8 -8 -8 -8 --------- Run | Yrd Mat Min Exi Min Mat Sto Rec Scr Total 8576 | 65 1300 125 736 2009 1604 368 1500 869 Wait 1693 | 2 749 . . 641 141 21 115 24 Move 6096 | 52 492 113 733 1178 1296 295 1164 773 Hop . | . . . . . . . . . Pick Up 63 | 1 7 4 1 9 14 10 11 6 Fast Attach 26 | 7 1 . . . 8 2 4 4 Attach 12 | . . . . 1 4 2 3 2 Detach 4 | . . . . . 2 1 . 1 Swap 96 | . 5 3 1 21 25 11 17 13 Drop 78 | . . 4 1 10 23 9 14 17 Fire 168 | 3 25 . . 46 46 7 24 17 Melee 252 | . 21 . . 91 42 8 78 12 Ram . | . . . . . . . . . Kick 10 | . . . . 8 2 . . . Crush 2 | . . . . . . 2 . . Escape Stasis 1 | . . . . . 1 . . . Rewire 68 | . . . . . . . 68 . Trap 5 | . . 1 . 4 . . . . Miscellaneous 2 | . . . . . . . 2 . Route ------- -11/Scrapyard -10/Materials (discovered 4 exits: [*Mat x2] / [*Min x2]) -10/Mines (discovered 3 exits: [*Mat x2] / *Exi) -10/Exiles -9/Mines (discovered 2 exits: *Mat x2) -8/Materials (discovered 2 exits: [*Fac] / *Sto) -8/Storage -8/Recycling (discovered 2 exits: [*Fac] / [*Scr]) -8/Scraptown (discovered 1 exit: [*Fac]) History --------- Turn | Location | Event 8 | -11/Scrapyard | Discovered new exit (range 15) 87 | -11/Scrapyard | Entered Materials 316 | -10/Materials | Build established: Mutant 710 | -10/Materials | Discovered new exit (range 11) 876 | -10/Materials | Discovered new exit (range 16) 912 | -10/Materials | Discovered new exit (range 4) 994 | -10/Materials | Repaired Aluminum Leg 1438 | -10/Materials | Discovered new exit (range 15) 1571 | -10/Materials | Entered Mines 1580 | -10/Mines | Met a Derelict bent on vengeance 1591 | -10/Mines | Discovered new exit (range 16) 1656 | -10/Mines | Discovered new exit (range 13) 1681 | -10/Mines | Found a hidden stash of uninstalled traps 1713 | -10/Mines | Deemed a non-threat by the Exiles lab entrance 1714 | -10/Mines | Discovered new exit (range 5) 1719 | -10/Mines | Entered Exiles 1748 | -10/Exiles | Met 8R-AWN 1769 | -10/Exiles | Met EX-HEX 1854 | -10/Exiles | Met EX-DEC 1901 | -10/Exiles | Visited The Gauntlet 2200 | -10/Exiles | Discovered new exit (range 12) 2310 | -10/Exiles | Met EX-BIN 2352 | -10/Exiles | Aligned with FarCom system 2354 | -10/Exiles | Given EX-Vault access code 2413 | -10/Exiles | Opened EX-Vault 2424 | -10/Exiles | Found Longsword +1 2511 | -10/Exiles | Warned to stay clear of 0b10 Research branches 3056 | -10/Exiles | Left Exiles lab with Longsword +1 3056 | -10/Exiles | Entered Mines 3060 | -9/Mines | Assisted by bots powering up and referring to "LRC-V3" 3130 | -9/Mines | Excavation squad dispatched 3130 | -9/Mines | A large section of the Mines collapsed 3249 | -9/Mines | Lost 3 allies 3380 | -9/Mines | Excavation squad dispatched 3551 | -9/Mines | Discovered new exit (range 10) 3761 | -9/Mines | Build established: Scavenger-Mutant 4039 | -9/Mines | Learned Materials trap positions 4250 | -9/Mines | Core integrity fell below 50% 4365 | -9/Mines | Received a Rocket Launcher from a helpful Derelict 4366 | -9/Mines | A weapon hastily lodged in a ceiling crevice suddenly fell to the ground 4581 | -9/Mines | Build established: Mutant 4604 | -9/Mines | Discovered new exit (range 3) 4625 | -9/Mines | Found a damaged Exp. Sensor Array with a note attached 4629 | -9/Mines | Found Prototype Device 6358 | -9/Mines | Identified Exp. Sensor Array 6363 | -9/Mines | Entered Materials 6363 | -8/Materials | Evolved 4 slots: Propulsion x2, Utility x2 6364 | -8/Materials | Loaded intel: 28 trap records 6436 | -8/Materials | Discovered new exit (range 16) 6892 | -8/Materials | Build established: Scavenger-Assassin 6946 | -8/Materials | Crushed by falling debris 7236 | -8/Materials | Discovered new exit (range 11) 7377 | -8/Materials | Build established: Scavenger-Skirmisher 7611 | -8/Materials | Repaired Imp. Light Armor Plating 8138 | -8/Materials | Identified exit to Storage 8287 | -8/Materials | Build established: Scavenger-Assassin 8513 | -8/Materials | Entered Storage 8797 | -8/Storage | Met a pair of Derelict thieves 8992 | -8/Storage | Core integrity fell below 50% 9090 | -8/Storage | Used back door to open Recycling access 9090 | -8/Storage | Discovered new exit (range 5) 9096 | -8/Storage | Entered Recycling 9109 | -8/Recycling | Core integrity fell below 20% 9147 | -8/Recycling | Build established: Mutant 9557 | -8/Recycling | Build established: Commander-Mutant 9697 | -8/Recycling | Lost 4 allies 10190 | -8/Recycling | Discovered new exit (range 5) 10820 | -8/Recycling | Scanned before Scraplab entrance 10833 | -8/Recycling | Discovered new exit (range 11) 10891 | -8/Recycling | Entered Scraplab 11061 | -8/Recycling | Entered Scraptown 11061 | -8/Scraptown | Accompanied by 27 allies 11322 | -8/Scraptown | Discovered new exit (range 5) 11404 | -8/Scraptown | Visited Shadow of the Wyrm 11643 | -8/Scraptown | Visited IN-MT5's Study 11702 | -8/Scraptown | Turned away by UFD registrar 11719 | -8/Scraptown | Visited CPS Storage 11858 | -8/Scraptown | Attacked by Scraptown defenders 11866 | -8/Scraptown | Allies destroyed Triborg 11871 | -8/Scraptown | Found Tri-treads 11894 | -8/Scraptown | Lost 6 allies 12049 | -8/Scraptown | Lost 13 allies 12106 | -8/Scraptown | Found Scrap Suit 12123 | -8/Scraptown | Destroyed by CF-XHN(x) with Makeshift Spear Last Messages --------------- 12082_ 7J-VVB(g) destroyed. 12084_ Acquired 58 matter. 12103_ Acquired 6 matter. 12103_ Serf 3b destroyed. 12103_ MI-L7Z(r) follow-up attacks with Ripteeth. 12103_ Savior 3a destroyed. 12105_ Dropped Lrg. Storage Unit. 12105_ Excavator 3b destroyed. 12106_ Dropped Imp. Weapon Shielding. 12106_ Savior 3e destroyed. 12106_ Acquired Scrap Suit. 12108_ MI-L7Z(r) follow-up attacks with Ripteeth. 12109_ MI-L7Z(r) destroyed. 12109_ Savior 3b destroyed. 12111_ Acquired 10 matter. 12115_ Transporter 3b destroyed. 12119_ Power Sword follow-up attack on CF-XHN(x). 12119_ CF-XHN(x) VSS Leg severed. 12121_ Power Sword follow-up attack on CF-XHN(x). 12123_ CF-XHN(x) VSS Leg severed. Map ----- +----------------------------------------------------+ | ##############??# #????????????????????? | | ##??????????????# #????????????????????? | | ##??????????????# #????????????????????? | | ##??????????????# #????????????????????? | | ##??????????????# #????????????????????? | | ##??????????????# ###???""?????????????? | | ##????########### [! ""#??"""?????????????? | | ##???? """"""""# [= ! """"# "??????????????? | | ##????"""" "# = = ! !%=""##"#???????????????? | | ##???# " """ =*%% !% = ### #????????????????? | | ##???# """""" # !!= ##"##????????????????? | | ##???#" """ # = ! "????????????????? | | ##???#"" = # %[% "????????????????? | | ##???# # [ * [! "????????????????? | | ######"""""" " # %*!!!!% "????????????????? | | ######### !!%!= "????????????????? | | !*!*!* "????????????????? | | [%* %= !!!]=%% "????????????????? | | ! *% !== = "????????????????? | | % !%==%== "????????????????? | | = !* "????????????????? | | % = =! % #"????????????????? | | * %![ % =%%!/ #?????????????????? | | % % [ %= %! =|!!| #?????????????????? | | ########"## # ## ###x=*####?????????????????? | | " ""#### # #@!!#????????????????????? | | " "???"????###" % """#!!!#????????????????????? | | "?????????#" " #= #????????????????????? | | ? " ????????#"" " # #????????????????????? | | ? ???????#""" " # #????????????????????? | | ?? " ??????#"" " # #????????????????????? | | ??" "?????#" "### #????????????????????? | | ????? ?""?????#" " # #????????????????????? | | ?????? ???????#"""""""### #????????????????????? | | ??????????????#########?# #????????????????????? | | ????????????????????????# #????????????????????? | | ???????????????????###### #????????????????????? | | ?????????????????"""""""" #????????????????????? | | ???????####?????""" """"" #????????????????????? | | ???????####???"""" " "" #????????????????????? | | ###????# = #????????????????????? | | ###????? ##???"" "" "" " #????????????????????? | | """???"" "##????""""""""" #????????????????????? | | ""##""" "##???????"""""" #????????????????????? | | "##""" "############### #????????????????????? | | ""##"" "############### #????????????????????? | | ""##"" "###"""""""""""# #????????????????????? | | ""##"| "###"" *=][! !"# #????????????????????? | | ""##"| "###"" !!!!== "# #????????????????????? | | ""##"" "###"" "# ##???????????????????? | +----------------------------------------------------+ Best States ------------- Heat Dissipation 31 Energy Generation 16 Energy Capacity 290 Matter Stores 300 Matter Capacity 300 Sight Range 16 Robot Scan Range 20 Terrain Scan Range 16 Terrain Scan Density 10 Additional Mass Support 6 Armor Coverage 600 Weapon Shielding 66 Evasion (%) 55 Recoil Reduction 4 Item Schematics ----------------- Melee Analysis Suite | -8/Materials | Scanalyzed Imp. Reaction Control System | -8/Storage | Hacked Adv. Sensor Array | -8/Recycling | Hacked IN-MT5's Pitchfork "Insurrection" | -8/Scraptown | Archive Robot Schematics ------------------ None Fabricated ------------ Nothing Alien Tech Used ----------------- None Achievements -------------- Assassin Party Time We Are Legion \\IAMDERELICT Challenges ------------ None Game ------ Seed VisualTrapRecalibrator Manual? 0 Play Time 01:53:14 Cumulative 67.0 hours Start 2024.08.18 @ 13:37:21 End 2024.08.18 @ 15:54:03 Sessions 1 Manual Loads 0 Difficulty Rogue Special Mode None Game No. 64 Rogue 64 Adventurer 0 Explorer 0 Win Type - Total 0 Types 0/0/0/0/0/0/0/0/0 Lore% 44 Gallery% 48 Achievement% 39 Wizard Run 0 Options --------- Layout 2 ASCII 0 Keyboard 1 Movement Vi Keybinds 0 Fullscreen 1 Font 32/SmallcapsGlow Map View 77x44 Zoom Use 0% Tactical HUD 1 Map Filters NONE Filters NONE Steam 1 RUN: 5010fd87-00d2-4f69-86fd-b4a529f12f8f